Cogmind - Beta 15 @@@ ROGUE MODE // 2025.07.30 @ 20:48:04 Player: satan5 Result: Self-destructed Performance ------------- Evolutions (2) 1000 Regions Visited (3) 600 Robots Destroyed (53) 265 Value Destroyed (1406) 1406 Prototype IDs (15) 300 Alien Tech Used (0) 0 Bonus (325) 325 TOTAL SCORE: 3896 Bonus ------- High Alert Combat Kills 54 Follower Combat Kills 357 Friendly Fire -86 Cogmind --------- Core Integrity 289/550 Matter 86/300 Energy 265/265 System Corruption 0% Temperature Cool (0) Movement Core (600) Ox11 Location -8/Materials Parts ------- > --- POWER (1) -------- Improved Ion Engine > --- PROPULSION (4) --- (None) > --- UTILITY (4) ------ Large Storage Unit > --- WEAPON (2) ------- Subdweller Shrapnel Launcher > --- INVENTORY (15) --- Light Ion Engine Improved Ion Engine Improved Ion Engine Disposable Heat Sink Improved Signal Interpreter Improved Terrain Scanner Power Bank Subdweller Laser Field Laser Subdweller Machine Gun Flamer Peak State ------------ > --- POWER ------------ Improved Ion Engine > --- PROPULSION ------- Subdweller Monowheel Subdweller Monowheel > --- UTILITY ---------- Large Storage Unit V3-11A's Pendant > --- WEAPON ----------- Subdweller Laser Subdweller Machine Gun > --- INVENTORY -------- Light Ion Engine Improved Ion Engine Improved Ion Engine Disposable Heat Sink Improved Signal Interpreter Improved Terrain Scanner Power Bank Subdweller Laser Field Laser Light EM Pulse Cannon Minigun Subdweller Shrapnel Launcher Flamer Flamer Flamer [Rating: 18] Favorites ----------- Power Improved Ion Engine Engine Improved Ion Engine Propulsion Light Treads Treads Light Treads Wheel Subdweller Monowheel Utility Large Storage Unit Device V3-11A's Pendant Storage Large Storage Unit Weapon Subdweller Beam Cannon Energy Gun Subdweller Laser Energy Cannon Subdweller Beam Cannon Ballistic Gun Light Assault Rifle Launcher Subdweller Shrapnel Launcher Special Weapon Flamer Build | -11 -10 -10 -8 ------- Run | Yrd Mat Sub Mat Slots Evolved 4 | . . . 4 Power . | . . . . Propulsion 2 | . . . 2 Utility 2 | . . . 2 Weapon . | . . . . Parts Attached 32 | 6 9 13 4 Power 5 | 1 3 1 . Engine 5 | 1 3 1 . Core . | . . . . Reactor . | . . . . Propulsion 8 | 2 1 5 . Treads 3 | 2 1 . . Leg . | . . . . Wheel 5 | . . 5 . Hover . | . . . . Flight . | . . . . Utility 5 | 1 2 2 . Device 2 | . . 2 . Storage 3 | 1 2 . . Processor . | . . . . Hackware . | . . . . Protection . | . . . . Artifact . | . . . . Weapon 14 | 2 3 5 4 Energy Gun 3 | 1 . 2 . Energy Cannon 5 | . 3 2 . Ballistic Gun 3 | 1 . 1 1 Ballistic Cannon . | . . . . Launcher 1 | . . . 1 Special Weapon 2 | . . . 2 Impact Weapon . | . . . . Slashing Weapon . | . . . . Piercing Weapon . | . . . . Special Melee Weapon . | . . . . Unidentified Prototypes 1 | . . 1 . Parts Lost 17 | . 3 6 8 Power 2 | . 1 1 . Propulsion 6 | . 1 3 2 Utility 1 | . . . 1 Weapon 8 | . 1 2 5 Highest Loss Streak 8 | . 1 2 8 To Critical Strikes . | . . . . Average Backups 11 | 2 8 12 14 Power 3 | . 2 3 3 Propulsion . | . . . . Utility 1 | . 1 2 3 Weapon 5 | . 2 6 7 Tool/Special . | . . . . Unused Backups 16 | 1 1 5 9 Power 3 | . 1 . 2 Propulsion 1 | 1 . . . Utility 3 | . . . 3 Weapon 8 | . . 4 4 Tool/Special 1 | . . 1 . Average Slot Usage (%) 85 | . 84 86 59 Engine 13 | . 14 14 9 Treads 16 | . 27 13 . Wheel 6 | . . 8 16 Device 5 | . . 7 7 Storage 13 | . 14 14 9 Energy Gun 5 | . . 7 2 Energy Cannon 20 | . 26 20 . Peak Build Rating 18 | 6 11 17 18 Average Rating 11 | 5 9 12 16 On Entrance 8 | . 6 11 17 Naked Turns . | . . . . Heaviest Build 44 | 13 35 44 36 Greatest Support 40 | 40 40 40 20 Greatest Overweight (x) 11 | . . 11 10 Average Overweight (x) 1 | . . 2 1 Largest Inventory Capacity 15 | 8 15 15 15 Average Capacity 14 | 7 14 15 15 Most Carried 15 | 3 12 15 15 Average Carried 12 | 2 8 13 14 Final Capacity 15 | 8 15 15 15 Final Carried 13 | 3 11 13 11 Class Distribution -------------------- 96% | Mutant 3% | Scavenger-Mutant Dominant Class ---------------- Mutant | -10/Materials Mutant | -10/Subcaves Mutant | -8/Materials Resources | -11 -10 -10 -8 ----------- Run | Yrd Mat Sub Mat Matter Collected 504 | 240 138 110 16 Remotely . | . . . . Salvage Created 1799 | 128 855 626 190 Parts 115 | 10 59 35 11 Haulers Intercepted 2 | . 2 . . Recyclers Shooed 2 | 2 . . . Parts Field Recycled . | . . . . Retrieved Matter . | . . . . Parts Self-Destructed 11 | . . 11 . Prevented . | . . . . Kills | -11 -10 -10 -8 ------- Run | Yrd Mat Sub Mat Combat Hostiles Destroyed 39 | . 19 12 8 Cannons 31 | . 19 12 . AOE 8 | . . . 8 Classes Destroyed 12 | 2 6 2 2 Worker 1 | . 1 . . Tunneler 3 | 3 . . . Hauler 2 | . 2 . . Recycler 3 | 1 1 . 1 Operator 2 | . 2 . . Watcher 3 | . 3 . . Swarmer 14 | . 9 3 2 Grunt 13 | . 10 . 3 Brawler 1 | . . . 1 Duelist 2 | . . . 2 Sentry 1 | . . 1 . Subdweller 8 | . . 8 . Best Kill Streak 7 | 2 5 2 7 Combat Bots Only 6 | . 5 2 6 Max Kills in Single Turn 2 | 1 1 1 2 Gunslinging . | . . . . Exploded 2 | . . . 2 Melee . | . . . . Uniques/NPCs Destroyed . | . . . . Combat | -11 -10 -10 -8 -------- Run | Yrd Mat Sub Mat Hostile Shots Fired 132 | . 68 43 21 Missed 35 | . 14 13 8 Hits 97 | . 54 30 13 Projectile 97 | . 54 30 13 AOE 1 | . . 1 . Critical Strikes 1 | . . . 1 Damage Taken 1970 | . 608 787 575 Core 412 | . 55 96 261 Absorbed by Shields . | . . . . Regen/Repaired (Parts) 62 | . 62 . . Core Remaining (%) 69 | 100 . 39 . Volleys Fired 179 | 21 53 88 17 Largest 2 | 2 2 2 2 Hottest 200 | 70 112 160 200 Shots Fired 323 | 42 84 171 26 Gun 103 | 42 4 48 9 Cannon 204 | . 80 123 1 Launcher 8 | . . . 8 Special 8 | . . . 8 Kinetic 36 | 21 2 . 13 Thermal 170 | 21 2 135 12 Explosive . | . . . . Electromagnetic 117 | . 80 36 1 Robot Hit Streak 23 | 12 11 23 6 Robot Miss Streak 3 | 2 3 3 2 Penetration Max . | . . . . Secondary Targets . | . . . . Shots Hit Robots 141 | 28 53 44 16 Core Hits 74 | 7 27 18 22 Critical Kills . | . . . . Critical Parts Destroyed . | . . . . Critical Strikes 3 | 1 1 . 1 Burn 2 | 1 . . 1 Corrupt 1 | . 1 . . Melee Attacks . | . . . . Impact . | . . . . Slashing . | . . . . Piercing . | . . . . Sneak Attacks . | . . . . Combat Hostiles . | . . . . Follow-up Attacks . | . . . . Damage Inflicted 4494 | 288 1446 1050 1710 Guns 547 | 288 12 136 111 Cannons 2239 | . 1325 914 . Explosions 1607 | . 83 . 1524 Melee . | . . . . Ramming 26 | . 26 . . Kinetic 1677 | 104 . . 1573 Thermal 1295 | 184 95 879 137 Explosive . | . . . . Electromagnetic 1496 | . 1325 171 . Impact . | . . . . Slashing . | . . . . Piercing . | . . . . Highest Corruption . | . . . . Average Corruption . | . . . . Corruption Purged . | . . . . Corruption Blocked . | . . . . Overload Shots . | . . . . Overflow Damage 64 | . 46 . 18 Projectiles 32 | . 32 . . Explosions 32 | . 14 . 18 Melee . | . . . . Knockbacks . | . . . . Impact . | . . . . Kinetic . | . . . . Secondary . | . . . . Self-Inflicted Damage 48 | . . . 48 Shots 1 | . . . 1 Rammed 4 | . 4 . . Targets Rammed 4 | . 4 . . Kicked . | . . . . Crushed . | . . . . Highest Temperature 317 | 122 317 252 234 Average Temperature 62 | 53 87 39 71 Received Heat Transfer 237 | . 147 63 27 Siege Activations . | . . . . Martial Activations . | . . . . Shielding Activations . | . . . . Robots Disrupted . | . . . . Combat Hostiles . | . . . . Robots Corrupted 1 | . 1 . . Combat Hostiles . | . . . . Parts Fried 5 | . 3 2 . Impact Corruptions . | . . . . Robots Melted . | . . . . Combat Hostiles . | . . . . Parts Melted 2 | . . . 2 Heat Transferred 2735 | 629 137 1174 795 Parts Sabotaged . | . . . . Parts Stolen . | . . . . Parts Stripped . | . . . . Power Chain Reactions 1 | . 1 . . Alert | -11 -10 -10 -8 ------- Run | Yrd Mat Sub Mat Maximum Alert Level 2 | . . . 2 Low Security (%) 92 | 100 100 . 26 Level 1 3 | . . . 28 Level 2 4 | . . . 44 Level 3 . | . . . . Level 4 . | . . . . Level 5 . | . . . . High Security . | . . . . Max Security . | . . . . Peak Influence 618 | 10 196 . 618 Initial . | . . . . Average 83 | 1 63 . 296 Influence Increases 1538 | 20 590 120 808 Destroy 0b10 Robot/C 800 | . 380 80 340 Destroy 0b10 Robot/NC 95 | 20 45 . 30 Destroy Leader 184 | . 100 10 74 Allied During Kill 60 | . . . 60 Successful Hack 29 | . 29 . . Disable Machine 75 | . 30 . 45 Anti-Garrison Action 150 | . . . 150 Destroy Structure 115 | . 6 . 109 Lose Combat Pursuer 30 | . . 30 . Influence Decreases 920 | 20 590 120 190 Time Decay 630 | 20 420 120 70 Lost Part 100 | . 20 . 80 Lost Ally 40 | . . . 40 Purge Threat 150 | . 150 . . Squads Dispatched 9 | . 5 . 4 Investigation 3 | . 3 . . Extermination . | . . . . Reinforcement 3 | . 2 . 1 Assault 2 | . . . 2 Garrison 1 | . . . 1 Intercept . | . . . . Searches Triggered . | . . . . Construction Impeded . | . . . . Haulers Reinforced . | . . . . Active Scanning Responses . | . . . . Cargo Convoy Interrupts . | . . . . Stealth | -11 -10 -10 -8 --------- Run | Yrd Mat Sub Mat Distress Signals 1 | . . . 1 Communications Jammed . | . . . . Distress Signals . | . . . . Times Spotted 67 | . 29 18 20 Peak Tracking Total 7 | . 5 3 7 Tactical Retreats 1 | . . 1 . Traps | -11 -10 -10 -8 ------- Run | Yrd Mat Sub Mat Traps Triggered 5 | . 3 2 . Indirectly . | . . . . Trap Hack Attempts . | . . . . Triggered . | . . . . Disarmed . | . . . . Reprogrammed . | . . . . Reused 1 | . . 1 . Traps Extracted . | . . . . Installed 1 | . . 1 . Triggered . | . . . . Most Traps Carried 2 | . . 2 . Machines | -11 -10 -10 -8 ---------- Run | Yrd Mat Sub Mat Machines Disabled 7 | . 2 1 4 Max in Single Turn 1 | . 1 1 1 Garrison Access 1 | . . . 1 Machines Repaired . | . . . . Machines Dismantled . | . . . . Machines Sabotaged . | . . . . Overloaded Fab Kills . | . . . . Hacking | -11 -10 -10 -8 --------- Run | Yrd Mat Sub Mat Machines Accessed 13 | . 9 4 . Terminals 6 | . 6 . . Fabricators . | . . . . Repair Stations 1 | . 1 . . Recycling Units 2 | . 2 . . Scanalyzers . | . . . . Garrison Access . | . . . . Total Hacks 45 | . 29 16 . Successful 37 | . 21 16 . Failed 8 | . 8 . . Catastrophic . | . . . . Database Lockouts . | . . . . Manual 19 | . 19 . . Terminals 17 | . 17 . . Fabricators . | . . . . Repair Stations 2 | . 2 . . Recycling Units 10 | . 10 . . Scanalyzers . | . . . . Garrison Access . | . . . . Terminal Hacks 21 | . 5 16 . Record 13 | . . 13 . Robot Analysis 2 | . 2 . . Prototype ID Bank 1 | . 1 . . Open Door 1 | . . 1 . Terminal Index 1 | . 1 . . Unreport Threat 1 | . 1 . . Proto ID Catalog 1 | . . 1 . Release Object 1 | . . 1 . Fabricator Hacks . | . . . . Repair Station Hacks 2 | . 2 . . Scan Component 1 | . 1 . . Repair 1 | . 1 . . Recycling Unit Hacks 2 | . 2 . . Retrieve Components 2 | . 2 . . Scanalyzer . | . . . . Garrison Access Hacks . | . . . . Unauthorized Hacks 12 | . 12 . . Terminals 6 | . 6 . . Botnet 5 | . 5 . . Operators 1 | . 1 . . Fabricators . | . . . . Repair Stations . | . . . . Recycling Units 6 | . 6 . . Monitor 1 | . 1 . . Reject 1 | . 1 . . Recyclers 2 | . 2 . . Mask 2 | . 2 . . Scanalyzers . | . . . . Garrison Access . | . . . . Data Cores Recovered . | . . . . Used . | . . . . Hacking Detections 8 | . 8 . . Full Trace Events . | . . . . Feedback Events . | . . . . Feedback Blocked . | . . . . Robot Schematics Acquired . | . . . . Robots Built . | . . . . Authchips . | . . . . Time . | . . . . Total Robot Build Rating . | . . . . Part Schematics Acquired . | . . . . Parts Built . | . . . . Authchips . | . . . . Time . | . . . . Total Part Build Rating . | . . . . Parts Repaired 1 | . 1 . . Time 16 | . 16 . . Parts Recycled . | . . . . Recycled Matter . | . . . . Retrieved Matter . | . . . . Retrieved Components 11 | . 11 . . Parts Scanalyzed . | . . . . Part Schematics Acquired . | . . . . Parts Damaged . | . . . . Bothacking | -11 -10 -10 -8 ------------ Run | Yrd Mat Sub Mat Used RIF Installer . | . . . . Robots Hacked . | . . . . Non-combat . | . . . . Combat . | . . . . Robot Hacks Applied . | . . . . Relay Couplers Released 1 | . . . 1 Machine Destruction 1 | . . . 1 Fabnet Peak Effective % . | . . . . Robots Rewired . | . . . . Allies Hacked . | . . . . Hacks Repelled . | . . . . Allies | -11 -10 -10 -8 -------- Run | Yrd Mat Sub Mat Total Allies 6 | . . 6 . Largest Group 4 | . . 4 4 Highest-Rated Group 76 | . . 76 76 Highest-Rated Ally 19 | . . 19 19 Total Orders . | . . . . Ally Attacks 64 | . . 10 54 Total Damage 1812 | . . 188 1624 Kills 18 | . . 3 15 Allies Corrupted . | . . . . Allies Melted . | . . . . Intel | -11 -10 -10 -8 ------- Run | Yrd Mat Sub Mat Active Infowar (turns) 147 | . . 147 . Terrain 147 | . . 147 . Robot Analysis Total 2 | . 2 . . Derelict Logs Recovered 1 | . . 1 . Drone Launches . | . . . . Drone Recoveries . | . . . . Exploration | -11 -10 -10 -8 ------------- Run | Yrd Mat Sub Mat Turns Passed 5606 | 161 1370 3889 186 Spaces Moved 2880 | 57 705 2019 99 Core 34 | 2 . 31 1 Treads 1493 | 55 705 733 . Legs . | . . . . Wheels 1353 | . . 1255 98 Hover . | . . . . Flight . | . . . . Fastest Speed 50 | 50 160 110 120 Average Speed 170 | 156 160 176 124 Slowest Speed 600 | 160 160 600 550 Overloaded Moves . | . . . . Propulsion Burnouts . | . . . . Robots Hopped . | . . . . Potential Cave-ins . | . . . . Cave-ins Triggered . | . . . . Exploration Rate (%) 55 | 5 99 97 19 Regions Visited 3 Branch Regions 1 Pre-discovered Areas . | . . . . Known Exits Taken . | . . . . Unknown Exits Taken 3 | 1 1 1 . Scrap Searched 9 | . . 9 . Spaces Dug . | . . . . Terrain Destroyed 80 | . 6 11 63 Melee . | . . . . Projectile 11 | . . 11 . AOE 69 | . 6 . 63 Terrain Rammed . | . . . . Walls Destroyed . | . . . . Machines Disabled . | . . . . Actions | -11 -10 -10 -8 --------- Run | Yrd Mat Sub Mat Total 3253 | 89 861 2175 128 Wait 95 | . 73 22 . Move 2877 | 56 704 2018 99 Hop . | . . . . Pick Up 37 | 5 11 18 3 Fast Attach 13 | 5 3 5 . Attach 13 | 1 3 5 4 Detach 2 | . 2 . . Swap 11 | . 4 3 4 Drop 20 | 1 4 14 1 Fire 179 | 21 53 88 17 Melee . | . . . . Ram . | . . . . Kick . | . . . . Crush 4 | . 4 . . Escape Stasis . | . . . . Rewire 1 | . . 1 . Trap 1 | . . 1 . Miscellaneous . | . . . . Route ------- -11/Scrapyard -10/Materials (discovered 6 exits: [*Mat x3] / [*Min x2] / *Sub) -10/Subcaves (discovered 3 exits: [*Mat x2] / Rec) -8/Materials (discovered 2 exits: Fac / Sto) History --------- Turn | Location | Event 13 | -11/Scrapyard | Discovered new exit (range 15) 162 | -11/Scrapyard | Entered Materials 314 | -10/Materials | Build established: Mutant 471 | -10/Materials | Discovered new exit (range 13) 711 | -10/Materials | Discovered new exit (range 4) 762 | -10/Materials | Discovered new exit (range 11) 872 | -10/Materials | Discovered new exit (range 6) 967 | -10/Materials | Discovered new exit (range 7) 1144 | -10/Materials | Repaired Lgt. EM Pulse Cannon 1515 | -10/Materials | Discovered new exit (range 13) 1532 | -10/Materials | Entered Subcaves 1533 | -10/Subcaves | Approached by a straggling Scientist 1595 | -10/Subcaves | Shifting Twisted Machinery released Battle Rifle 1597 | -10/Subcaves | Shifting Twisted Machinery released Sub. Beam Cannon 3218 | -10/Subcaves | Disturbed a concealed Subdweller 3220 | -10/Subcaves | Core integrity fell below 50% 3312 | -10/Subcaves | Visited Clippyterm 3316 | -10/Subcaves | Identified exit to Recycling 3369 | -10/Subcaves | Visited triangular shrine 3376 | -10/Subcaves | Found Prototype Device 3376 | -10/Subcaves | Identified V3-11A's Pendant 3381 | -10/Subcaves | Befriended Subdweller 4531 | -10/Subcaves | Befriended Subdweller 4605 | -10/Subcaves | Discovered new exit (range 6) 4644 | -10/Subcaves | Shifting Twisted Machinery released Sub. Power Source 4734 | -10/Subcaves | Learned location of 2 exits from Materials 4780 | -10/Subcaves | Visited 4L-MR0's lab 4797 | -10/Subcaves | Found Power Bank 4915 | -10/Subcaves | Shifting Twisted Machinery released Piercing Trap 5012 | -10/Subcaves | Approached by friendly Subdweller 5232 | -10/Subcaves | Disturbed a concealed Subdweller 5321 | -10/Subcaves | Befriended Subdweller 5351 | -10/Subcaves | Befriended Subdweller 5351 | -10/Subcaves | Befriended Subdweller 5351 | -10/Subcaves | Discovered new exit (range 14) 5421 | -10/Subcaves | Entered Materials 5421 | -8/Materials | Accompanied by 4 allies 5421 | -8/Materials | Evolved 4 slots: Propulsion x2, Utility x2 5422 | -8/Materials | Identified exit to Factory 5422 | -8/Materials | Identified exit to Storage 5607 | -8/Materials | Self-destructed Last Messages --------------- payload. 05597_ G-50 Soldier unfolds itself. 05597_ L-31 Rogue unfolds itself. 05597_ M-28 Smith unfolds itself. 05598_ H-61 Shepherd destroyed. 05598_ Minigun destroyed. 05599_ L-31 Rogue destroyed. 05599_ Destroyed Wheel. 05599_ R-06 Scavenger destroyed. 05601_ Destroyed Katana. 05601_ B-36 Bruiser destroyed. 05601_ G-50 Soldier destroyed. 05601_ M-28 Smith destroyed. 05601_ G-47 Trooper destroyed. 05601_ L-31 Rogue destroyed. 05603_ IF-HIM(R) destroyed. 05605_ G-47 Trooper destroyed. 05606_ K-01 Serf collects debris. 05606_ FQ-DLA(R) affixes Scrap Shield Fragment to Scrap Shield. Map ----- +----------------------------------------------------+ | ????????????????????????????????????????????? | | ????????????????????????????????????????????? | | ????????????????????????????????????????????? | | ????????????????????????????????????????????? | | ????????????????????????????????????????????? | | ????????????????????????????????????????????? | | ????????????????????????????????????????????? | | ????????????????????????????????????????????? | | ??????????????????????? ##?????????????????? | | ????????????????????? ?????????????????? | | ??????????????????## r ;????????????????? | | ?????????????????? / =;????????????????? | | ????????????????? [k????????????????? | | ???????????????? % [% ????????????????? | | ?????????????? [ ????????????????? | | ?????????????? [ ????????????????? | | ????????????? ;????????????????? | | ?????????????? #????????????????? | | ???????????????# #?????#??????????? | | ????????????????# ;##### ###????????? | | ????????????????? ! #????????? | | ??????????????????# ;% ?????????? | | ???????????########;;% """ ?????????? | | ???????????# ;R % """ ?????????? | | ???????????# ; """ #????????? | | ???????????# ; @% #????????? | | ???????????# # #????????? | | ???????????# # u """ #????????? | | ???????????# #[% ^""" #????????? | | ???????????# + """ +????????? | | ???????????# # #????????? | | ???????????# + #????????? | | ???????????# # ]] #????????? | | ???????????# # ]! #????????? | | ???????????# # #????????? | | ???????????# # #????????? | | ???????????# # #????????? | | ???????????# # """ ?????????? | | ???????????# # """ ?????????? | | ???????????# + """ ???????????? | | ???????????#% ##"; ????????????? | | ???????????####+###### "= ????????????? | | ??????????????# #????# "% """? #????????? | | ??????????????# #????# " %"" #????????? | | ??????????????# ######"" """ #????????? | | ??????????????# #????????? | | ??????????????# ^ ?????????? | | ??????????????# """ ???????????? | | ??????????????# """ ???????????? | | ??????????????# """ #????????? | +----------------------------------------------------+ Best States ------------- Heat Dissipation 31 Energy Generation 12 Energy Capacity 265 Matter Stores 300 Matter Capacity 300 Sight Range 16 Terrain Scan Range 16 Terrain Scan Density 10 Evasion (%) 40 Recoil Reduction 2 Item Schematics ----------------- None Robot Schematics ------------------ None Fabricated ------------ Nothing Repaired ---------- Lgt. EM Pulse Cannon | 11% | -10/Materials Alien Tech Used ----------------- None Achievements -------------- None Challenges ------------ None Game ------ Seed WeightServoBooster Manual? 0 Play Time 00:28:52 Cumulative 330.8 hours Start 2025.07.30 @ 20:21:11 End 2025.07.30 @ 20:48:04 Sessions 1 Manual Loads 0 Difficulty Rogue Special Mode None Game No. 156 Rogue 142 Adventurer 14 Explorer 0 Win Type - Total 18 Types 15/0/1/1/0/0/0/0/1/0 Lore% 64 Gallery% 72 Achievement% 68 Wizard Run 0 Options --------- Layout 1 ASCII 0 Keyboard 0 Movement Arrows Keybinds 0 Fullscreen 1 Font 24/Smallcaps Map View 50x35 Zoom Use 0% Tactical HUD 1 Map Filters NONE Filters NONE Steam 1 RUN: 2940f248-0cf8-4e2f-940b-fea761f092b0